lending/lending_fUSD_20241120
["ID","MTS","AMOUNT","RATE_DAILY","PERIOD"]
[342712492,1732060958166,150.0,8.503e-05,5]
[342712493,1732060991722,519.04,8.219e-05,2]
[342712496,1732061006470,173.43,7.705e-05,2]
[342712498,1732061143183,176.7,0.00016658,30]
[342712499,1732061143422,176.7,0.00019242,30]
[342712500,1732061143778,176.7,0.00021826,30]
[342712501,1732061144034,176.7,0.0002441,30]
[342712502,1732061145142,-450.0,9.59e-05,2]
[342712503,1732061145164,-400.0,9.6e-05,2]
[342712504,1732061145183,-43.97092439,9.653e-05,2]
[342712505,1732061175140,163.89,8.219e-05,2]
[342712506,1732061231090,-422.19503935,9.504e-05,3]
[342712507,1732061231120,-77.80496065,9.504e-05,3]
[342712508,1732061231145,-516.96907561,9.653e-05,2]
[342712509,1732061231168,-1214.03,9.721e-05,2]
[342712510,1732061231189,-500.0,9.83e-05,2]
[342712511,1732061231211,-1932.43457382,9.83e-05,2]
[342712512,1732061238112,-252.585867,9.78e-05,2]
[342712513,1732061238135,-54.01126964,9.83e-05,2]
[342712514,1732061249099,-401.23680845,9.83e-05,2]
[342712515,1732061346101,-9096.57,9.602e-05,2]
[342712516,1732061346124,-250.0,9.655e-05,2]
[342712517,1732061346146,-434.22734809,9.83e-05,2]
[342712518,1732061346167,-300.0,9.84e-05,2]
[342712519,1732061346190,-150.0,9.841e-05,2]
[342712520,1732061346213,-13826.93111099,9.842e-05,2]
[342712521,1732061346239,-8355.10143114,9.842e-05,2]
[342712522,1732061350134,-1717.96745787,9.842e-05,2]
[342712523,1732061350155,-163.17,9.842e-05,2]
[342712524,1732061350176,-616.39920755,9.842e-05,2]
[342712525,1732061350198,-250.0,9.89e-05,2]
[342712526,1732061350222,-739.12125652,9.9e-05,2]
[342712527,1732061350243,-1292.8752,9.9e-05,2]
[342712528,1732061350262,-510.5009,9.9e-05,2]
[342712529,1732061350282,-560.02,9.916e-05,2]
[342712530,1732061350303,-500.17576864,9.973e-05,2]
[342712531,1732061350326,-500.0,9.973e-05,2]
[342712532,1732061350346,-351.08040166,9.973e-05,2]
[342712533,1732061350366,-442.80345125,9.99e-05,2]
[342712534,1732061351112,-9272.21849624,9.99e-05,2]
[342712535,1732061365143,-500.0,9.973e-05,2]
[342712536,1732061365164,-2746.1038108,9.99e-05,2]
[342712537,1732061365185,-1838.44,9.991e-05,2]
[342712538,1732061365206,-1000.0,9.999e-05,2]
[342712539,1732061365227,-1501.74150419,9.999e-05,2]
[342712540,1732061365256,-33815.81011488,0.0001,2]
[342712541,1732061371081,-4494.09,9.617e-05,2]
[342712542,1732061371105,-5732.64708,0.0001,2]
[342712558,1732061432392,-300.0,9.999e-05,2]
[342712559,1732061432401,-531.15456,0.0001,2]
[342712560,1732061432416,-879.0,0.0001,2]
[342712561,1732061432499,-3280.14140929,0.0001,2]
[342712565,1732061438136,-1438.2175,9.502e-05,2]
[342712567,1732061438147,-878.55386386,0.0001,2]
[342712568,1732061438244,-575.30635287,0.0001,2]
[342712569,1732061438258,-675.54813812,0.0001,2]
[342712570,1732061438270,-1233.13430963,0.0001,2]
[342712571,1732061438297,-1428.63920147,0.0001,2]
[342712572,1732061438350,-1600.9927269,0.0001,2]
[342712573,1732061438362,-2089.53480847,0.0001,2]
[342712574,1732061438373,-5628.89544,0.0001,2]
[342712575,1732061438384,-5261.99882957,0.0001,2]
[342712576,1732061438404,-32779340.7252967,0.0001,2]
[342712577,1732061438416,-24729.888386,0.0001,2]
[342712578,1732061438427,-24851.56038248,0.0001,2]
[342712579,1732061438463,-32846.49489622,0.0001,2]
[342712580,1732061438564,-4005.44711083,0.0001,2]
[342712713,1732061440144,-406.24944498,0.0001,2]
[342712716,1732061440157,-380.21998,0.0001,2]
[342712727,1732061440249,-1383.89329523,0.0001,2]
[342712734,1732061440304,-270.08452385,0.0001,2]
[342713020,1732061443144,-1464.11840576,0.0001,2]
[342713027,1732061443202,-711.69,0.0001,2]
[342713041,1732061443318,-17396.32791231,0.0001,2]
[342713089,1732061443761,-52.24207492,0.0001,2]
[342713092,1732061443776,-22428.43603846,0.0001,2]
[342713094,1732061443787,-886.24,0.0001,2]
[342713097,1732061443802,-28849.79301512,0.0001,2]
[342713151,1732061446088,-44813.74431269,0.0001,2]
[342713152,1732061446194,-505.8228,0.0001,2]
[342713153,1732061446248,-1588.72414878,0.0001,2]
[342713154,1732061446259,-1844.52,0.0001,2]
[342713155,1732061446523,-4732.9047737,0.0001,2]
[342713156,1732061446534,-1893.03955505,0.0001,2]
[342713159,1732061816463,493.08,8.219e-05,2]
[342713160,1732061976037,192.38,0.00016658,30]
[342713161,1732061976282,192.38,0.00019242,30]
[342713162,1732061976525,192.38,0.00021826,30]
[342713163,1732061976746,192.38,0.0002441,30]
[342713164,1732062134895,1138.34,8.369e-05,2]
[342713165,1732062163933,4036.41,8.366e-05,2]
[342713166,1732062166398,1856.25,8.433e-05,2]
[342713167,1732062181723,250.0,8.353e-05,2]
[342713168,1732062188001,250.0,8.344e-05,2]
[342713169,1732062194879,-237.95,8.848e-05,2]
[342713170,1732062194900,-17.05,8.848e-05,2]
[342713171,1732062310952,23900.0,8.351e-05,2]
[342713172,1732062337145,-488.8521419,8.848e-05,2]
[342713173,1732062338092,534.64220486,8e-05,2]
[342713174,1732062379701,166.57,8.287e-05,2]
[342713175,1732062408576,3878.12,8.287e-05,2]
[342713176,1732062415794,231.22,8.287e-05,2]
[342713177,1732062430093,-1243.71040629,8.848e-05,2]
[342713178,1732062430120,-250.38745181,8.848e-05,2]
[342713179,1732062430141,-300.0,8.849e-05,2]
[342713180,1732062430160,-340.8359412,8.85e-05,2]
[342713181,1732062434120,-191.506906,8.85e-05,2]
[342713182,1732062436091,-173.982014,8.85e-05,2]
[342713183,1732062441126,-200.9701029,8.85e-05,2]
[342713184,1732062459265,200.0,8.379e-05,2]
[342713185,1732062493834,252.76,8.375e-05,2]
[342713197,1732062547237,-2588.86,8.767e-05,2]
[342713198,1732062547263,-237.95,8.85e-05,2]
[342713199,1732062547285,-237.95,8.853e-05,2]
[342713200,1732062547306,-18772.01919209,8.853e-05,2]
[342713201,1732062547326,-237.95,8.855e-05,2]
[342713202,1732062547347,-237.95,8.857e-05,2]
[342713203,1732062547368,-237.95,8.86e-05,2]
[342713204,1732062547388,-237.95,8.862e-05,2]
[342713205,1732062547412,-237.95,8.864e-05,2]
[342713206,1732062547432,-237.95,8.866e-05,2]
[342713207,1732062547454,-308.19960379,8.867e-05,2]
[342713208,1732062547474,-237.95,8.869e-05,2]
[342713209,1732062547493,-308.19960378,8.871e-05,2]
[342713210,1732062547515,-237.95,8.871e-05,2]
[342713211,1732062547534,-237.95,8.873e-05,2]
[342713212,1732062547554,-237.95,8.876e-05,2]
[342713213,1732062547574,-237.95,8.878e-05,2]
[342713214,1732062547596,-237.95,8.88e-05,2]
[342713215,1732062547616,-237.95,8.883e-05,2]
[342713216,1732062547637,-237.95,8.885e-05,2]
[342713217,1732062547660,-237.95,8.887e-05,2]
[342713218,1732062547681,-237.95,8.89e-05,2]
[342713219,1732062547701,-237.95,8.892e-05,2]
[342713220,1732062547723,-1852.42,8.893e-05,2]
[342713221,1732062547744,-150.0,8.919e-05,2]
[342713222,1732062547764,-180.54,8.919e-05,2]
[342713223,1732062547784,-2002.22,8.975e-05,2]
[342713224,1732062547805,-96.58436532,9e-05,2]
[342713225,1732062555089,-403.71640337,9e-05,2]
[342713226,1732062555111,-241.22,9.075e-05,2]
[342713227,1732062555134,-934.4,9.262e-05,2]
[342713228,1732062555157,-1938.8868,9.389e-05,2]
[342713229,1732062555179,-400.0,9.4e-05,3]
[342713230,1732062555201,-252.76,9.422e-05,2]
[342713231,1732062555224,-1000.0,9.489e-05,2]
[342713232,1732062555456,-900.0,9.5e-05,3]
[342713233,1732062555480,-1300.0,9.6e-05,3]
[342713234,1732062555501,-250.0,9.605e-05,2]
[342713235,1732062555521,-1800.0,9.7e-05,3]
[342713236,1732062555546,-2200.0,9.8e-05,3]
[342713237,1732062555566,-257.0483,9.8e-05,2]
[342713238,1732062555590,-2187.0,9.801e-05,2]
[342713239,1732062555611,-255.0,9.811e-05,2]
[342713240,1732062555786,-4031.0,9.863e-05,2]
[342713241,1732062555809,-3969.50407056,9.89e-05,2]
[342713242,1732062555829,-250.0,9.89e-05,2]
[342713243,1732062555849,-508.3190042,9.9e-05,2]
[342713244,1732062555869,-567.16782191,9.9e-05,2]
[342713245,1732062559282,-101.26127809,9.9e-05,2]
[342713246,1732062559304,-1723.96139336,9.9e-05,2]
[342713247,1732062565237,-6292.21720664,9.9e-05,2]
[342713248,1732062565260,-445.8842245,9.9e-05,2]
[342713251,1732062574111,-1582.6180755,9.9e-05,2]
[342713252,1732062574132,-178.9353,9.9e-05,2]
[342713253,1732062574152,-816.3642,9.9e-05,2]
[342713254,1732062574173,-745.0084,9.9e-05,2]
[342713255,1732062574194,-1196.535,9.9e-05,2]
[342713256,1732062574214,-786.2575,9.9e-05,2]
[342713257,1732062574235,-4629.0973,9.9e-05,2]
[342713258,1732062574257,-14683.4114245,9.9e-05,2]
[342713262,1732062608039,468.42,8.219e-05,2]
[342713267,1732062632304,-150.0,9.726e-05,2]
[342713269,1732062632314,-2284.9485755,9.9e-05,2]
[342713271,1732062632325,-400.0,9.9e-05,3]
[342713272,1732062632335,-500.37878878,9.973e-05,2]
[342713273,1732062632345,-500.0,9.973e-05,2]
[342713274,1732062632355,-500.0,9.973e-05,2]
[342713275,1732062632364,-4782.83540637,9.99e-05,2]
[342713276,1732062632417,-8436.1975189,9.99e-05,2]
[342713277,1732062632427,-150.0,9.998e-05,2]
[342713278,1732062632580,-1500.0,9.999e-05,2]
[342713279,1732062632590,-19445.78477471,9.999e-05,2]
[342713280,1732062632600,-1289.5693327,9.999e-05,2]
[342713281,1732062632611,-150.01,9.999e-05,2]
[342713282,1732062632621,-319085.49999662,0.0001,2]
[342713283,1732062632632,-883.0,0.0001,2]
[342713284,1732062632644,-820.7216297,0.0001,2]
[342713285,1732062632656,-337.01913656,0.0001,2]
[342713286,1732062632677,-1103.55713475,0.0001,2]
[342713287,1732062632694,-879.734874,0.0001,2]
[342713293,1732062638317,-7485976.11015768,0.0001,2]
[342713294,1732062638328,-250.0,0.0001,2]
[342713295,1732062638337,-250.0,0.0001,2]
[342713296,1732062638346,-250.0,0.0001,2]
[342713297,1732062638355,-250.0,0.0001,2]
[342713298,1732062638366,-250.0,0.0001,2]
[342713299,1732062638376,-250.0,0.0001,2]
[342713300,1732062638386,-250.0,0.0001,2]
[342713301,1732062638395,-250.0,0.0001,2]
[342713302,1732062638403,-250.0,0.0001,2]
[342713303,1732062638415,-250.0,0.0001,2]
[342713304,1732062638424,-250.0,0.0001,2]
[342713305,1732062638433,-250.0,0.0001,2]
[342713306,1732062638442,-521763.49694657,0.0001,2]
[342713307,1732062638451,-184836.03462415,0.0001,2]
[342713308,1732062638468,-1000.0,0.0001,2]
[342713309,1732062638477,-1000.0,0.0001,2]
[342713310,1732062638487,-1000.0,0.0001,2]
[342713311,1732062638496,-158.51714257,0.0001,2]
[342713312,1732062638505,-1000.0,0.0001,2]
[342713313,1732062638515,-466.34675534,0.0001,2]
[342713314,1732062638523,-6600.0,0.0001,2]
[342713315,1732062638533,-3000.0,0.0001,2]
[342713316,1732062638542,-1000.0,0.0001,2]
[342713317,1732062638551,-1000.0,0.0001,2]
[342713318,1732062638560,-1000.0,0.0001,2]
[342713319,1732062638569,-1000.0,0.0001,2]
[342713320,1732062638578,-1000.0,0.0001,2]
[342713321,1732062638587,-1000.0,0.0001,2]
[342713322,1732062638596,-1000.0,0.0001,2]
[342713323,1732062638605,-1000.0,0.0001,2]
[342713324,1732062638614,-1000.0,0.0001,2]
[342713325,1732062638623,-1000.0,0.0001,2]
[342713326,1732062638632,-1000.0,0.0001,2]
[342713327,1732062638642,-1000.0,0.0001,2]
[342713328,1732062638651,-1000.0,0.0001,2]
[342713329,1732062638660,-1000.0,0.0001,2]
[342713330,1732062638669,-1000.0,0.0001,2]
[342713332,1732062638679,-1000.0,0.0001,2]
[342713334,1732062638687,-1000.0,0.0001,2]
[342713336,1732062638696,-1000.0,0.0001,2]
[342713337,1732062638707,-1000.0,0.0001,2]
[342713339,1732062638716,-1000.0,0.0001,2]
[342713342,1732062638725,-1000.0,0.0001,2]
[342713343,1732062638737,-1000.0,0.0001,2]
[342713344,1732062638748,-1000.0,0.0001,2]
[342713345,1732062638757,-1000.0,0.0001,2]
[342713346,1732062638766,-1000.0,0.0001,2]
[342713347,1732062638775,-1000.0,0.0001,2]
[342713348,1732062638786,-1000.0,0.0001,2]
[342713350,1732062638795,-1000.0,0.0001,2]
[342713352,1732062638803,-1000.0,0.0001,2]
[342713353,1732062638812,-1000.0,0.0001,2]
[342713354,1732062638821,-293.53346772,0.0001,2]
[342713355,1732062638831,-400.0,0.0001,3]
[342713356,1732062638840,-24538846.68620267,0.0001,2]
[342713357,1732062638851,-24729.888386,0.0001,2]
[342713358,1732062638866,-24851.56038248,0.0001,2]
[342713359,1732062639043,-1165.70537192,0.0001,2]
[342713360,1732062639056,-2840.48332068,0.0001,2]
[342713361,1732062639070,-10056.29606246,0.0001,2]
[342713362,1732062639083,-3790.56737796,0.0001,2]
[342713363,1732062639184,-3166.62687809,0.0001,2]
[342713364,1732062639197,-371.49733027,0.0001,2]
[342713365,1732062639213,-333.37312191,0.0001,2]
[342713366,1732062639231,-255.18236197,0.0001,2]
[342713367,1732062639250,-2440.0,0.0001,2]
[342713368,1732062639265,-684.3000014,0.0001,2]
[342713369,1732062639281,-400.44,0.0001,2]
[342713370,1732062639295,-679.18515526,0.0001,2]
[342713371,1732062639308,-393.01182328,0.0001,2]
[342713372,1732062639324,-180205.79787447,0.0001,2]
[342713373,1732062639336,-4473.06322101,0.0001,2]
[342713374,1732062639374,-297.01221194,0.0001,2]
[342713375,1732062639388,-962.307125,0.0001,2]
[342713380,1732062640428,-1265.52191152,0.0001,2]
[342713381,1732062640442,-1563.51501817,0.0001,2]
[342713383,1732062643304,-644.78466635,9.999e-05,2]
[342713384,1732062643315,-2311.81749805,0.0001,2]
[342713385,1732062643331,-5564.20932399,0.0001,2]
[342713386,1732062643345,-2015.01787345,0.0001,2]
[342713387,1732062643371,-16647.22592975,0.0001,2]
[342713388,1732062643421,-40505.12717656,0.0001,2]
[342713389,1732062643545,-81774.97628826,0.0001,2]
[342713390,1732062643560,-1498.05158507,0.0001,2]
[342713391,1732062643572,-921.00030379,0.0001,2]
[342713392,1732062643585,-707.88,0.0001,2]
[342713393,1732062643599,-74924.71306237,0.0001,2]
[342713394,1732062643677,-4951.72312035,0.0001,2]
[342713395,1732062643689,-2124.14504524,0.0001,2]
[342713407,1732062646237,-6849.97226504,0.0001,2]
[342713408,1732062646248,-4521.66041327,0.0001,2]
[342713409,1732062646294,-5157.8190213,0.0001,2]
[342713410,1732062646356,-92000.00000005,0.0001,2]
[342713411,1732062646416,-92150.0,0.0001,2]
[342713412,1732062646490,-19.33133491,0.0001,2]
[342713413,1732062646506,-2027.19667296,0.0001,2]
[342713414,1732062646520,-8469.76999176,0.0001,2]
[342713415,1732062646532,-6721.81795954,0.0001,2]
[342713416,1732062646545,-11440.25617284,0.0001,2]
[342713417,1732062646557,-1412.58725933,0.0001,2]
[342713418,1732062646568,-743.3523116,0.0001,2]
[342713419,1732062646580,-599.1612812,0.0001,2]
[342713420,1732062646591,-386078.36332862,0.0001,2]
[342713421,1732062646603,-1349470.93846736,0.0001,2]
[342713422,1732062646618,-24842.10577238,0.0001,2]
[342713423,1732062646630,-2588.61111,0.0001,2]
[342713427,1732062755383,153.9,0.00016658,30]
[342713428,1732062755587,153.9,0.00019242,30]
[342713429,1732062755838,153.9,0.00021826,30]
[342713430,1732062756042,153.9,0.0002441,30]
[342713432,1732063264462,456.97,8.358e-05,2]
[342713433,1732063530135,-614.23592809,9.837e-05,2]
[342713434,1732063627145,-158.78,9.595e-05,2]
[342713435,1732063627169,-50.3780356,9.611e-05,2]
[342713436,1732063633109,-108.4019644,9.611e-05,2]
[342713437,1732063633130,-45.19911627,9.627e-05,2]
[342713438,1732063639106,-113.58088373,9.627e-05,2]
[342713439,1732063639130,-99.30250226,9.643e-05,2]
[342713440,1732063640089,-59.47749774,9.643e-05,2]
[342713441,1732063640110,-250.0,9.714e-05,2]
[342713442,1732063640130,-236.24632255,9.837e-05,2]
[342713443,1732063640151,-385.76407191,9.837e-05,2]
[342713444,1732063640171,-404.83553709,9.841e-05,2]
[342713445,1732063646083,-157.93356717,9.841e-05,2]
[342713446,1732063647147,-410.71089574,9.841e-05,2]
[342713447,1732063647168,-250.0,9.89e-05,2]
[342713448,1732063647189,-300.0,9.906e-05,2]
[342713449,1732063647209,-250.0,9.907e-05,2]
[342713450,1732063647229,-4015.54,9.907e-05,2]
[342713451,1732063647250,-3244.30341539,9.907e-05,2]
[342713452,1732063709913,153.9,0.00016658,30]
[342713453,1732063710336,153.9,0.00019931,30]
[342713454,1732063710569,153.9,0.00023204,30]
[342713455,1732063754098,-166.57,8.992e-05,2]
[342713456,1732063754122,-200.0,9e-05,3]
[342713457,1732063754143,-500.0,9.1e-05,3]
[342713458,1732063754163,-800.0,9.2e-05,3]
[342713459,1732063754184,-1100.0,9.3e-05,3]
[342713460,1732063754206,-1400.0,9.4e-05,3]
[342713461,1732063754226,-200.0,9.5e-05,3]
[342713462,1732063754246,-3.00252224,9.6e-05,3]
[342713463,1732063757150,-196.99747776,9.6e-05,3]
[342713464,1732063757171,-200.0,9.7e-05,3]
[342713465,1732063757192,-200.0,9.8e-05,3]
[342713466,1732063757214,-244.0,9.9e-05,2]
[342713467,1732063757235,-952.0,9.9e-05,3]
[342713468,1732063757256,-883.47379116,9.907e-05,2]
[342713469,1732063763623,-532.89052151,0.000274,120]
[342713470,1732063763644,-300.0,0.000274,120]
[342713471,1732063763669,-800.0,0.00028,120]
[342713472,1732063763690,-500.0,0.00029,120]
[342713473,1732063763712,-800.0,0.0003,120]
[342713474,1732063763734,-151.0,0.0003,120]
[342713475,1732063763755,-151.0,0.0003,120]
[342713476,1732063763778,-153.9,0.00033023,120]
[342713477,1732063763800,-409.09,0.00033151,120]
[342713478,1732063763820,-151.0,0.00033753,120]
[342713479,1732063763840,-340.02947849,0.00034,120]
[342713481,1732063831476,-250.0,9.4e-05,2]
[342713482,1732063831486,-569.17,9.426e-05,2]
[342713483,1732063831496,-1247.63193497,9.907e-05,2]
[342713484,1732063831508,-518.78085848,9.907e-05,2]
[342713485,1732063831517,-150.99,9.931e-05,2]
[342713486,1732063831527,-150.0,9.973e-05,2]
[342713487,1732063831536,-2830.82914232,9.973e-05,2]
[342713488,1732063831548,-1968.17085768,9.973e-05,2]
[342713489,1732063831557,-500.0,9.973e-05,2]
[342713490,1732063831566,-500.0,9.973e-05,2]
[342713491,1732063831575,-150.0,9.991e-05,2]
[342713492,1732063831586,-1000.0,9.992e-05,2]
[342713493,1732063831596,-999.99,9.992e-05,2]
[342713494,1732063831605,-11417.660098,9.992e-05,2]
[342713495,1732063831614,-4464.3370547,9.992e-05,2]
[342713496,1732063831623,-9999.99,9.992e-05,2]
[342713497,1732063831632,-5371.05,9.992e-05,2]
[342713498,1732063831643,-1519.5,9.992e-05,2]
[342713499,1732063831654,-150.99,9.992e-05,2]
[342713500,1732063831663,-266.6,9.992e-05,2]
[342713501,1732063831677,-286.92,9.992e-05,2]
[342713502,1732063831687,-6508.95112578,9.992e-05,2]
[342713503,1732063831699,-2900.52887422,9.992e-05,2]
[342713504,1732063831708,-299.99,9.992e-05,2]
[342713505,1732063831717,-166.59842578,9.992e-05,2]
[342713506,1732063831728,-275.03977066,9.992e-05,2]
[342713507,1732063831739,-58.35180356,9.992e-05,2]
[342713508,1732063831750,-816.96251044,9.992e-05,2]
[342713510,1732063831847,-23.65370959,9.992e-05,2]
[342713511,1732063831859,-887.99377997,9.992e-05,2]
[342713512,1732063831870,-298.48995941,9.992e-05,2]
[342713513,1732063831881,-299.6900001,9.992e-05,2]
[342713514,1732063831894,-1407.06112803,9.992e-05,2]
[342713515,1732063831906,-947.31015434,9.992e-05,2]
[342713516,1732063831919,-1100.45875812,9.992e-05,2]
[342713517,1732063831928,-189.99,9.992e-05,2]
[342713518,1732063831937,-1502.38,9.992e-05,2]
[342713519,1732063831950,-292.73922562,9.993e-05,2]
[342713520,1732063831963,-11939.71989514,9.993e-05,2]
[342713521,1732063831980,-29.35025454,9.993e-05,2]
[342713522,1732063831993,-2338.24974628,9.993e-05,2]
[342713524,1732063837470,-322.495,9.993e-05,2]
[342713525,1732063837482,-1120.66502401,9.993e-05,2]
[342713526,1732063837522,-3012.9718522,9.993e-05,2]
[342713527,1732063837580,-452.64,9.993e-05,2]
[342713528,1732063837636,-293.10632078,9.993e-05,2]
[342713529,1732063837647,-3746.53404951,9.993e-05,2]
[342713530,1732063837659,-1562.92844443,9.993e-05,2]
[342713531,1732063837676,-256.36821549,9.993e-05,2]
[342713532,1732063837690,-243.63178451,9.993e-05,2]
[342713533,1732063837701,-612.18240239,9.993e-05,2]
[342713534,1732063837746,-13094.2937432,9.993e-05,2]
[342713535,1732063837757,-14794.2572075,9.993e-05,2]
[342713536,1732063837768,-4782.4368486,9.993e-05,2]
[342713537,1732063837778,-5100.5366425,9.993e-05,2]
[342713538,1732063837788,-5418.6364365,9.993e-05,2]
[342713539,1732063837797,-5736.7362304,9.993e-05,2]
[342713540,1732063837807,-19802.91,9.993e-05,2]
[342713541,1732063837817,-3214.0,9.993e-05,2]
[342713542,1732063837827,-305.32,9.993e-05,2]
[342713543,1732063837836,-824.63,9.993e-05,2]
[342713544,1732063837845,-1904.66,9.993e-05,2]
[342713545,1732063837856,-3079.26,9.993e-05,2]
[342713546,1732063837865,-162.22,9.993e-05,2]
[342713547,1732063837874,-1340.78,9.993e-05,2]
[342713548,1732063837883,-2662.85985472,9.993e-05,2]
[342713549,1732063837892,-2662.85985471,9.994e-05,2]
[342713550,1732063837902,-2662.85985471,9.995e-05,2]
[342713551,1732063837912,-2662.85985471,9.995e-05,2]
[342713553,1732063837921,-2662.85985471,9.996e-05,2]
[342713555,1732063837931,-2662.85985471,9.997e-05,2]
[342713557,1732063837940,-2662.85985471,9.998e-05,2]
[342713559,1732063837949,-2662.85985471,9.998e-05,2]
[342713561,1732063837959,-322.39233317,9.999e-05,2]
[342713563,1732063837968,-91743.00448406,9.999e-05,2]
[342713565,1732063837977,-2662.85985471,9.999e-05,2]
[342713567,1732063837986,-293.53346772,0.0001,2]
[342713569,1732063837996,-293.53346771,0.0001,2]
[342713571,1732063838005,-293.53346771,0.0001,2]
[342713573,1732063838015,-293.53346771,0.0001,2]
[342713575,1732063838024,-293.53346771,0.0001,2]
[342713577,1732063838033,-293.53346771,0.0001,2]
[342713579,1732063838042,-293.53346771,0.0001,2]
[342713581,1732063838051,-293.53346771,0.0001,2]
[342713583,1732063838060,-293.53346771,0.0001,2]
[342713585,1732063838069,-32581107.11146897,0.0001,2]
[342713587,1732063838081,-24729.888386,0.0001,2]
[342713589,1732063838092,-24851.56038248,0.0001,2]
[342713592,1732063838105,-5622.49853044,0.0001,2]
[342713594,1732063838120,-879.14563992,0.0001,2]
[342713596,1732063838131,-8942.6228913,0.0001,2]
[342713597,1732063838142,-30985.4909023,0.0001,2]
[342713598,1732063838153,-16547.36684081,0.0001,2]
[342713599,1732063838164,-8352.5221417,0.0001,2]
[342713600,1732063838175,-24486.90140937,0.0001,2]
[342713601,1732063838186,-999.33463317,0.0001,2]
[342713602,1732063838196,-2356.06880708,0.0001,2]
[342713603,1732063838208,-3863.01164692,0.0001,2]
[342713604,1732063838219,-9905.36294209,0.0001,2]
[342713605,1732063838230,-478.96128028,0.0001,2]
[342713612,1732063838311,-3280.16677704,0.0001,2]
[342713647,1732063839418,-5515.90098311,0.0001,2]
[342713648,1732063839474,-1362.7092578,0.0001,2]
[342713649,1732063839487,-337.374,0.0001,2]
[342713650,1732063839729,-148.48038104,0.0001,2]
[342713651,1732063839740,-270.525589,0.0001,2]
[342713652,1732063839753,-3185.65302144,0.0001,2]
[342713653,1732063839765,-1718.57543512,0.0001,2]
[342713654,1732063839776,-10521.21000774,0.0001,2]
[342713655,1732063839789,-2479.16409999,0.0001,2]
[342713656,1732063839802,-7987.6482867,0.0001,2]
[342713657,1732063839812,-1244.09212786,0.0001,2]
[342713658,1732063839823,-1084.14,0.0001,2]
[342713659,1732063839834,-602.7973578,0.0001,2]
[342713661,1732063842445,-1605.35180376,0.0001,2]
[342713662,1732063842702,-4255.20767333,0.0001,2]
[342713663,1732063842719,-1112.32159237,0.0001,2]
[342713664,1732063842729,-369.04840763,0.0001,2]
[342713665,1732063842741,-2198.31428799,0.0001,2]
[342713666,1732063842755,-735.896,0.0001,2]
[342713667,1732063842766,-54441.66437771,0.0001,2]
[342713668,1732063842778,-27495.50318918,0.0001,2]
[342713669,1732063842789,-25756.89536326,0.0001,2]
[342713670,1732063842800,-24177.19319849,0.0001,2]
[342713671,1732063842811,-26471.49432998,0.0001,2]
[342713673,1732063842822,-28229.08538442,0.0001,2]
[342713676,1732063842838,-66958.32857403,0.0001,2]
[342713678,1732063842849,-39106.53068259,0.0001,2]
[342713680,1732063842861,-8171.08538668,0.0001,2]
[342713682,1732063842872,-14052.54610636,0.0001,2]
[342713685,1732063842884,-14580.76530704,0.0001,2]
[342713687,1732063842894,-3512.21721223,0.0001,2]
[342713689,1732063842905,-6372.55022499,0.0001,2]
[342713691,1732063842917,-9411.5522078,0.0001,2]
[342713693,1732063842928,-1491.93845989,0.0001,2]
[342713696,1732063842946,-404.3835385,0.0001,2]
[342713698,1732063842957,-383.33170483,0.0001,2]
[342713702,1732063842968,-2846.00596719,0.0001,2]
[342713705,1732063842983,-445.70504057,0.0001,2]
[342713708,1732063842995,-35059.03070488,0.0001,2]
[342713710,1732063843006,-947.300632,0.0001,2]
[342713713,1732063843017,-1901.8855562,0.0001,2]
[342713715,1732063843028,-1872.08172289,0.0001,2]
[342713717,1732063843039,-7483.98605945,0.0001,2]
[342713719,1732063843050,-16255.33657046,0.0001,2]
[342713721,1732063843062,-10732.54630384,0.0001,2]
[342713724,1732063843073,-2865.61295665,0.0001,2]
[342713725,1732063843084,-2504.70570255,0.0001,2]
[342713728,1732063843095,-6574.24991238,0.0001,2]
[342713730,1732063843108,-6415.50390625,0.0001,2]